bitfinex-derivatives/quotes_ETHF0:USTF0_20251103
["timestamp","ask_amount","ask_price","bid_price","bid_amount"]
[1762134399758,1.06945609,3844.4,3844.3,1.53e-06]
[1762134399962,0.2268,3843.9,3843.8,3.2078]
[1762134400260,1.71231792,3843.9,3843.8,3.2078]
[1762134400463,0.82979806,3843.9,3843.8,3.2078]
[1762134401058,0.83178216,3843.9,3843.8,3.2106019]
[1762134402168,0.83178216,3843.9,3843.8,0.0028019]
[1762134403369,1.04407799,3843.9,3843.8,0.0028019]
[1762134403767,0.83178216,3843.9,3843.8,0.0028019]
[1762134403969,0.83178216,3843.9,3843.8,0.2373019]
[1762134404166,0.0019841,3843.9,3843.8,1.11982176]
[1762134405671,0.2287841,3843.9,3843.8,0.0028019]
[1762134406370,0.0019841,3843.9,3843.8,0.2224019]
[1762134406665,0.0019841,3843.9,3843.8,1.10492176]
[1762134406867,0.2167841,3843.9,3843.8,0.2224019]
[1762134407070,0.0019841,3843.9,3843.8,0.2224019]
[1762134407461,0.2167841,3843.9,3843.8,0.2224019]
[1762134407662,0.2167841,3843.9,3843.8,0.0028019]
[1762134408061,0.2167841,3843.9,3843.8,0.4711019]
[1762134408464,0.2167841,3843.9,3843.8,0.6907019]
[1762134409366,0.0019841,3843.9,3843.8,0.6907019]
[1762134410571,0.0019841,3843.9,3843.8,9.9227019]
[1762134412472,0.0019841,3843.9,3843.8,9.9217019]
[1762134413777,0.1412,3845.0,3844.9,0.68776]
[1762134414570,0.1412,3845.5,3844.7,1.11225481]
[1762134414772,0.1433051,3845.5,3845.3,3.67591]
[1762134414976,0.0021051,3845.5,3845.4,0.2196]
[1762134415180,0.1388051,3845.5,3845.4,0.2196]
[1762134415371,0.0021051,3845.5,3845.4,0.2196]
[1762134416679,5.1e-06,3845.5,3845.4,0.2196]
[1762134416982,5.1e-06,3845.5,3845.4,9.4476]
[1762134417881,5.1e-06,3845.5,3845.4,0.2196]
[1762134418082,5.1e-06,3845.5,3845.4,9.4476]
[1762134419085,5.1e-06,3845.5,3845.4,9.4456]
[1762134422281,0.51932796,3846.8,3846.7,0.2196]
[1762134422479,0.51932796,3846.8,3846.7,12.6514]
[1762134423273,0.52130013,3846.8,3846.7,12.6538626]
[1762134423478,0.52130013,3846.8,3846.7,13.1218026]
[1762134423791,0.52130013,3846.8,3846.7,3.2102626]
[1762134423792,0.73610013,3846.8,3846.7,3.2102626]
[1762134423978,8.73610013,3846.8,3846.7,0.0024626]
[1762134425183,8.73610013,3846.8,3846.3,3.2078]
[1762134425483,0.2148,3846.4,3846.3,2.4935]
[1762134425688,0.2148,3845.4,3845.3,12.4298]
[1762134425879,3.2078,3846.4,3845.5,0.1415]
[1762134426379,3.2078,3846.4,3845.6,9.221]
[1762134426575,0.2148,3845.6,3845.5,0.00187319]
[1762134427482,0.2148,3844.9,3844.8,3.2078]
[1762134427686,0.2148,3844.9,3844.4,3.67602]
[1762134427887,0.2148,3844.9,3844.4,3.2078]
[1762134428089,0.2148,3844.5,3844.4,12.4288]
[1762134428478,0.2148,3844.5,3844.4,3.21048418]
[1762134428678,3.2078,3845.2,3844.5,0.60971]
[1762134429089,3.2078,3845.2,3844.6,0.46819]
[1762134429489,3.2078,3845.7,3845.1,0.2196]
[1762134429782,3.2078,3846.2,3845.2,0.46812]
[1762134430184,3.2078,3846.2,3845.5,0.1415]
[1762134430594,3.2078,3846.2,3845.5,0.82918]
[1762134430992,0.2148,3845.6,3845.2,3.2078]
[1762134431289,3.2078,3846.2,3845.6,0.46807]
[1762134431792,0.2148,3845.6,3845.5,0.1415]
[1762134432085,0.2148,3845.6,3845.3,9.22]
[1762134432288,0.2148,3845.6,3845.3,9.68811]
[1762134432688,3.2078,3846.2,3845.5,0.1415]
[1762134432992,3.2078,3846.2,3845.5,0.60958]
[1762134433380,3.2078,3846.2,3845.5,0.1415]
[1762134433585,3.2078,3846.2,3845.7,0.46806]
[1762134433985,3.2078,3846.2,3845.5,0.1415]
[1762134433986,0.2148,3845.6,3845.5,0.1415]
[1762134434185,3.2078,3846.2,3845.7,0.46806]
[1762134434387,3.2078,3846.2,3846.0,0.1415]
[1762134434590,3.2078,3846.2,3846.0,0.60953]
[1762134434795,3.2078,3846.2,3846.1,0.2196]
[1762134434999,3.2078,3846.7,3846.1,0.2196]
[1762134435292,3.2078,3846.7,3846.1,0.68761]
[1762134435898,3.2078,3846.7,3846.2,0.46799]
[1762134436088,3.2078,3847.1,3846.6,0.2276]
[1762134436289,0.2223,3846.6,3846.0,3.3493]
[1762134436481,0.2223,3846.1,3846.0,3.2078]
[1762134436685,3.72910013,3846.8,3846.0,12.5656]
[1762134436882,0.52130013,3846.8,3846.5,0.1388]
[1762134437701,0.52130013,3846.8,3846.5,0.60676]
[1762134438096,0.52130013,3846.8,3846.5,0.1388]
[1762134438594,0.52130013,3846.8,3846.7,0.2276]
[1762134440086,0.52130013,3846.8,3846.7,9.4446]
[1762134444699,0.52130013,3846.8,3846.7,12.6524]
[1762134445292,0.52130013,3846.8,3846.7,12.6504]
[1762134447001,0.52130013,3846.8,3846.7,3.4354]
[1762134447299,0.52130013,3846.8,3846.7,12.6494]
[1762134448600,0.52130013,3846.8,3846.7,13.11734]
[1762134448797,0.52130013,3846.8,3846.7,12.6494]
[1762134450295,0.74260013,3846.8,3846.7,3.2078]
[1762134450497,0.52130013,3846.8,3846.7,9.212]
[1762134450693,0.74260013,3846.8,3846.7,9.212]
[1762134450905,0.2213,3846.4,3846.3,12.4198]
[1762134451398,0.52130013,3846.8,3846.0,0.1388]
[1762134451399,0.2213,3846.1,3846.0,0.1388]
[1762134451604,0.2213,3845.9,3845.8,3.2078]
[1762134451997,3.2078,3846.3,3845.3,3.2078]
[1762134451998,0.2213,3845.6,3845.3,3.2078]
[1762134452204,0.2213,3845.4,3845.3,3.2078]
[1762134452500,0.2213,3845.4,3845.3,10.0678]
[1762134452702,3.2078,3846.3,3845.3,10.3045]
[1762134452703,3.41221688,3846.3,3845.3,10.3045]
[1762134453004,0.6008995,3846.2,3845.3,10.3045]
[1762134453300,0.6008995,3846.1,3845.3,10.77261]
[1762134453501,3.41221688,3846.3,3845.3,10.77261]
[1762134453502,0.60097757,3846.0,3845.3,10.77261]
[1762134453702,3.41221688,3846.3,3845.3,10.77261]
[1762134453899,0.60100013,3846.2,3845.3,10.3045]
[1762134454196,0.1349,3846.0,3845.3,10.7726]
[1762134454395,3.41221688,3846.3,3845.5,0.60598]
[1762134454597,0.60093963,3846.2,3845.5,0.1379]
[1762134454802,0.2213,3845.6,3845.5,0.1379]
[1762134455000,0.2213,3845.6,3845.3,3.2078]
[1762134455404,0.2213,3845.4,3845.3,3.2078]
[1762134455808,0.2213,3845.1,3845.0,0.1415]
[1762134456106,3.2078,3845.8,3845.0,0.84634]
[1762134456707,3.2078,3845.8,3845.0,0.3782]
[1762134456904,0.2213,3845.1,3844.8,3.67597]
[1762134457104,3.2078,3845.8,3845.0,0.3746]
[1762134458003,3.2078,3845.8,3845.0,0.84275]
[1762134458207,3.2078,3845.8,3845.0,0.3746]
[1762134458406,0.2213,3844.9,3844.8,3.2078]
[1762134458604,0.2213,3844.5,3844.4,3.21048418]
[1762134458801,0.2213,3844.5,3844.4,0.00268418]
[1762134460506,3.2078,3845.0,3844.5,0.3746]
[1762134460910,0.2213,3844.5,3844.4,0.00268418]
[1762134461106,3.2078,3845.0,3844.5,0.1379]
[1762134462903,0.2213,3844.5,3844.4,0.00268418]
[1762134463410,0.0471,3845.5,3844.5,0.1379]
[1762134463411,3.2078,3845.1,3844.5,0.1379]
[1762134463604,0.2213,3844.6,3844.4,0.00268418]
[1762134463905,0.1291,3845.0,3844.5,0.3746]
[1762134464310,3.2078,3845.1,3844.5,0.84281]
[1762134464703,3.2078,3845.1,3844.5,0.3746]
[1762134465012,0.2331,3844.6,3844.5,0.3746]
[1762134465207,0.3622,3844.5,3844.4,0.00268418]
[1762134465600,0.2331,3844.5,3844.4,0.00268418]
[1762134467106,0.3622,3844.5,3844.4,0.00268418]
[1762134470813,0.2331,3843.6,3843.5,3.3457]
[1762134471221,3.2078,3844.1,3843.5,3.5776]
[1762134471424,3.2078,3844.1,3843.5,4.04592]
[1762134471624,3.2078,3844.1,3843.5,3.5776]
[1762134471917,3.21029555,3844.1,3843.5,3.579838]
[1762134472126,3.21029555,3844.1,3843.6,0.46832]
[1762134472318,3.21029555,3844.1,3843.5,3.347938]
[1762134472920,0.1322,3844.0,3843.5,3.347938]
[1762134473822,0.2331,3843.6,3843.5,0.002238]
[1762134474215,0.2331,3842.6,3842.2,3.2078]
[1762134474420,0.2331,3842.3,3842.2,3.2078]
[1762134474616,0.2331,3842.3,3842.0,2.81613068]
[1762134474617,0.2331,3842.3,3842.0,0.61313068]
[1762134474927,0.2331,3842.1,3842.0,0.47123068]
[1762134475119,0.2331,3842.1,3842.0,0.47409138]
[1762134475518,3.4409,3842.1,3842.0,0.47409138]
[1762134476415,0.2331,3842.1,3842.0,0.47409138]
[1762134476617,3.4409,3842.1,3842.0,0.47409138]
[1762134479917,0.278,3841.0,3840.9,3.2078]
[1762134480130,0.278,3841.0,3840.0,0.1419]
[1762134480131,0.2331,3840.6,3840.0,0.1419]
[1762134480322,3.4409,3840.6,3840.0,0.1419]
[1762134480732,3.4409,3840.6,3840.0,0.61065]
[1762134481026,0.23647156,3840.6,3840.0,0.14452022]
[1762134481326,0.2331,3840.3,3840.0,0.14452022]
[1762134481532,0.2331,3840.2,3840.1,0.46874]
[1762134481732,3.21117156,3840.6,3840.1,0.46874]
[1762134482033,3.21117156,3840.6,3840.0,0.14452022]
[1762134482434,3.21117156,3840.6,3840.0,0.61328022]
[1762134483033,3.21117156,3840.6,3840.0,0.14452022]
[1762134483233,0.2331,3840.1,3840.0,0.14452022]
[1762134483430,0.2331,3840.1,3840.0,0.00262022]
[1762134484927,0.2331,3840.1,3840.0,0.14452022]
[1762134485533,0.2331,3840.1,3840.0,0.00262022]
[1762134485729,3.21117156,3840.6,3840.0,0.37642022]
[1762134486334,3.21117156,3840.6,3840.0,0.84518022]
[1762134486633,0.00337156,3840.6,3840.5,0.3738]
[1762134492236,1.50427682,3842.5,3841.8,0.2319]
[1762134492237,3.2078,3841.9,3841.8,0.2319]
[1762134492841,0.0449,3843.0,3841.7,0.46855]
[1762134492842,3.2078,3842.4,3842.2,0.46849]
[1762134493138,0.00301954,3842.4,3842.3,0.2319]
[1762134493536,0.00301954,3842.4,3842.2,0.46849]
[1762134493835,0.00301954,3842.4,3842.3,0.2319]
[1762134495434,3.3434,3844.0,3843.2,0.46836]
[1762134495633,3.3434,3844.0,3843.0,0.1419]
[1762134495634,0.84778032,3843.9,3843.5,0.1419]
[1762134495839,0.2347,3843.6,3843.5,0.1419]
[1762134496438,0.23653678,3843.6,3843.5,0.14402495]
[1762134496741,0.00183678,3843.6,3843.5,0.14402495]
[1762134497239,0.00183678,3843.6,3843.5,0.36822495]
[1762134497433,0.00183678,3843.6,3843.5,0.14402495]
[1762134498330,0.00183678,3843.6,3843.5,0.00212495]
[1762134498331,0.23653678,3843.6,3843.5,0.00212495]
[1762134498738,3.44433678,3843.6,3843.5,0.00212495]
[1762134499133,4.29236505,3843.6,3843.5,0.00212495]
[1762134499534,3.20963678,3843.6,3843.5,0.36822495]
[1762134499930,0.00183678,3843.6,3843.5,0.36822495]
[1762134505132,0.23653678,3843.6,3843.5,0.00212495]
[1762134506548,0.2334,3843.1,3842.5,0.1419]
[1762134506748,3.4412,3842.6,3841.8,0.46854]
[1762134506946,3.4412,3842.6,3841.9,0.46852]
[1762134507444,3.4412,3842.6,3842.0,0.14467042]
[1762134507647,3.2078,3842.6,3842.5,0.3678]
[1762134507845,3.4412,3842.6,3842.0,0.14467042]
[1762134508043,3.4412,3842.6,3842.0,0.61318042]
[1762134508243,3.2528,3843.0,3842.5,0.1305]
[1762134509349,3.2078,3843.0,3842.5,0.59895]
[1762134509546,9.20783678,3843.6,3843.0,0.1305]
[1762134509547,3.2078,3843.4,3843.0,0.1305]
[1762134509747,0.2334,3843.1,3843.0,0.1305]
[1762134510051,0.2334,3843.1,3842.5,0.1305]
[1762134510245,0.2334,3843.1,3842.6,0.46844]
[1762134510658,3.2528,3843.0,3842.5,0.1305]
[1762134510952,3.2078,3843.0,3842.5,0.1305]
[1762134511248,3.2078,3843.4,3843.0,0.1305]
[1762134511454,3.2078,3843.4,3842.5,0.59895]
[1762134511952,3.2078,3843.4,3842.5,0.1305]
[1762134512152,3.2078,3843.4,3842.5,0.59895]
[1762134512354,3.2078,3843.4,3842.5,0.1305]
[1762134512550,3.2528,3843.0,3842.5,0.1305]
[1762134512751,0.2334,3842.6,3842.5,0.1305]
[1762134513953,0.2334,3842.6,3842.1,3.2078]
[1762134514454,0.2334,3842.2,3842.1,3.2078]
[1762134518154,3.2078,3843.0,3842.5,0.1305]
[1762134518451,0.2334,3842.6,3842.1,3.2078]
[1762134519260,0.2334,3842.2,3842.1,3.2078]
[1762134519559,0.2334,3842.1,3842.0,0.00277042]
[1762134520758,0.83358497,3842.1,3842.0,0.00277042]
[1762134521256,1.28591858,3842.1,3842.0,0.00277042]
[1762134521559,0.2334,3841.3,3841.2,3.2078]
[1762134522556,0.1321,3842.0,3841.2,3.91619096]
[1762134522752,4.05084815,3841.9,3841.2,3.44758096]
[1762134523060,0.59894537,3841.8,3841.2,3.44758096]
[1762134525463,3.2078,3841.9,3841.2,3.44758096]
[1762134525664,0.2167,3841.3,3841.2,3.21028096]
[1762134525862,3.2078,3841.9,3841.2,3.44048096]
[1762134526064,3.2078,3841.9,3841.2,3.90909096]
[1762134526563,3.2078,3841.9,3841.8,0.2302]
[1762134526762,3.4245,3841.9,3841.5,0.1419]
[1762134527166,0.2167,3841.3,3841.2,3.21028096]
[1762134530161,3.2078,3841.9,3841.2,3.44048096]
[1762134530357,0.59817118,3841.8,3841.2,3.44048096]
[1762134530566,3.2078,3841.9,3841.2,3.44048096]
[1762134530761,0.59809817,3841.8,3841.2,3.44048096]
[1762134530958,3.2078,3841.5,3841.2,0.23268096]
[1762134533760,0.2167,3841.3,3841.2,0.23268096]
[1762134534261,0.2167,3841.3,3841.2,0.00248096]
[1762134534659,1.05910668,3841.3,3841.2,0.00248096]
[1762134535658,0.84240668,3841.3,3841.2,0.23268096]
[1762134535859,1.05910668,3841.3,3841.2,0.23268096]
[1762134536266,0.2167,3841.3,3841.2,0.23268096]
[1762134537360,0.81561635,3841.3,3841.2,0.00248096]
[1762134537664,1.05968683,3841.3,3841.2,0.00248096]
[1762134540771,0.81561635,3841.3,3841.2,0.00248096]
[1762134542671,1.05979608,3841.3,3840.2,3.2078]
[1762134542969,0.1291,3841.0,3840.2,3.2078]
[1762134543165,0.84305147,3840.9,3840.2,3.2078]
[1762134543361,0.59891635,3840.8,3840.5,0.1419]
[1762134543568,0.00250706,3840.8,3840.7,0.2302]
[1762134543762,0.2167,3840.6,3840.5,0.14388683]
[1762134545176,0.2167,3840.6,3840.5,0.37408683]
[1762134545978,0.00250706,3840.8,3840.7,0.2302]
[1762134546674,0.60226074,3840.8,3840.7,0.2302]
[1762134546873,0.81896074,3840.8,3840.7,0.2302]
[1762134547275,0.84782009,3840.8,3840.7,0.2302]
[1762134547477,0.60226074,3840.8,3840.7,0.2302]
[1762134547679,0.00250706,3840.8,3840.7,0.2302]
[1762134553393,3.2078,3841.6,3841.5,0.3721]
[1762134553590,4.05610178,3841.6,3841.5,0.3721]
[1762134554290,4.05878824,3841.6,3841.5,0.3721]
[1762134555795,3.81280884,3841.6,3841.5,0.3721]
[1762134556292,4.29073313,3841.6,3841.5,0.1419]
[1762134556487,4.29073313,3841.6,3841.0,0.1419]
[1762134556683,0.60232238,3841.5,3841.0,0.1419]
[1762134557683,0.24601792,3841.4,3841.0,0.1419]
[1762134557888,0.60232238,3841.3,3841.2,0.2208]
[1762134558296,0.60232238,3841.5,3841.2,0.2208]
[1762134558497,0.84834823,3841.4,3841.2,0.2208]
[1762134558697,0.60232238,3841.3,3841.2,0.2208]
[1762134558991,0.2319,3841.3,3841.2,0.2208]
[1762134559198,0.83422238,3841.3,3841.2,0.2208]
[1762134559398,0.83422238,3841.3,3841.0,0.1419]
[1762134559596,0.60232238,3841.2,3841.1,0.2208]
[1762134560000,0.60232238,3841.5,3841.1,0.2208]
[1762134560197,0.84840819,3841.4,3841.1,0.2208]
[1762134560399,0.2319,3841.1,3840.7,3.2078]
[1762134561400,0.2319,3841.1,3841.0,0.1395]
[1762134561997,0.83436497,3841.1,3840.7,3.2078]
[1762134562200,0.6024191,3841.0,3840.7,3.2078]
[1762134562400,0.1321,3841.5,3840.7,3.2078]
[1762134562401,0.6024191,3840.9,3840.7,3.2078]
[1762134562702,3.2078,3841.2,3840.7,3.2078]
[1762134562905,0.84847728,3841.1,3840.7,3.2078]
[1762134563201,0.60244613,3841.0,3840.7,3.2078]
[1762134563403,0.60244613,3840.9,3840.7,3.2078]
[1762134563605,3.2078,3841.2,3840.7,3.2078]
[1762134563805,0.2319,3840.8,3840.7,3.2078]
[1762134564106,0.2319,3840.8,3840.5,0.14388683]
[1762134564307,0.2319,3840.8,3840.7,0.2208]
[1762134565207,0.2319,3840.8,3840.5,0.00198683]
[1762134565208,0.2283,3840.6,3840.5,0.00198683]
[1762134565401,4.28439033,3840.6,3840.5,0.00198683]
[1762134569103,4.28439033,3840.6,3840.5,0.13608683]
[1762134569601,4.28439033,3840.6,3840.5,0.00198683]
[1762134570003,4.28439033,3840.6,3840.5,0.36638683]
[1762134570205,0.84829033,3840.6,3840.5,0.36638683]
[1762134570410,0.04532525,3841.2,3840.5,0.13608683]
[1762134570604,3.2078,3841.5,3841.0,0.3644]
[1762134570903,3.2078,3841.5,3841.4,0.2303]
[1762134571108,0.00268646,3841.6,3841.5,0.3644]
[1762134571503,3.1122648,3841.9,3841.8,0.69884]
[1762134571710,4.58297682,3843.3,3842.7,0.69873]
[1762134571911,3.2078,3843.3,3843.2,0.2303]
[1762134572210,3.80968929,3843.3,3843.2,0.2303]
[1762134572599,3.81175701,3843.3,3843.2,0.23264497]
[1762134573105,3.20986772,3843.3,3843.2,0.23264497]
[1762134573505,1.37517682,3844.3,3843.2,0.70100497]
[1762134573715,3.2078,3844.1,3843.2,0.23264497]
[1762134574209,3.2078,3844.1,3843.3,0.46836]
[1762134574401,3.2078,3844.1,3843.2,0.00234497]
[1762134574597,3.20963323,3844.1,3843.3,0.46836]
[1762134574906,3.20963323,3844.1,3843.2,0.00234497]
[1762134575098,3.20963323,3844.1,3843.3,0.46836]
[1762134575301,3.20963323,3844.1,3843.2,0.00234497]
[1762134575699,3.2078,3843.6,3843.2,0.00234497]
[1762134575913,0.2283,3843.3,3843.2,0.00234497]
[1762134589217,3.4361,3843.3,3843.2,0.00234497]
[1762134595216,4.03614992,3843.3,3843.2,0.00234497]
[1762134595523,3.4361,3843.3,3843.2,0.00234497]
[1762134596112,3.4361,3843.3,3843.2,0.23814497]
[1762134596318,3.2078,3843.3,3843.2,0.23814497]
[1762134598021,4.04605007,3843.3,3843.2,0.00234497]
[1762134598220,4.29167506,3843.3,3843.2,0.00234497]
[1762134601026,5.42985188,3843.3,3843.2,0.2358]
[1762134601225,4.29167506,3843.3,3843.0,0.1415]
[1762134601425,0.84687506,3843.2,3843.1,0.2358]
[1762134601930,0.84687506,3843.2,3843.1,0.23909332]
[1762134604430,3.20963323,3844.1,3843.9,0.2358]
[1762134604730,3.20963323,3844.1,3844.0,0.3773]
[1762134604927,3.45631885,3844.1,3844.0,0.3773]
[1762134605229,3.69249596,3844.1,3844.0,0.3773]
[1762134605433,3.69249596,3844.1,3843.5,3.3493]
[1762134605434,0.237,3843.6,3843.5,0.1415]
[1762134605630,3.20963323,3844.1,3843.5,0.3773]
[1762134605831,0.237,3843.6,3843.5,0.1415]
[1762134606025,0.24584619,3843.6,3843.5,0.3773]
[1762134606424,3.20963323,3844.1,3844.0,0.3773]
[1762134606629,3.69243591,3844.1,3843.5,0.1415]
[1762134606826,0.37630268,3844.0,3843.5,0.1415]
[1762134607026,0.24580268,3843.9,3843.5,0.1415]
[1762134607221,0.237,3843.6,3843.1,3.21109332]
[1762134607435,0.237,3843.6,3843.1,0.00329332]
[1762134607436,0.237,3843.2,3843.1,0.00329332]
[1762134608531,0.237,3843.2,3843.1,0.23909332]
[1762134608919,0.48283457,3843.2,3843.1,0.00329332]
[1762134610735,0.24583457,3843.2,3843.1,0.23909332]
[1762134611529,0.48283457,3843.2,3843.1,0.00329332]
[1762134612234,0.237,3843.2,3843.1,0.00329332]
[1762134613931,0.4828218,3843.2,3843.1,0.00329332]
[1762134616337,1.0836445,3843.2,3843.1,0.00329332]
[1762134618632,4.29146041,3843.2,3843.1,0.00329332]
[1762134620837,5.64306038,3843.2,3842.0,3.82053068]
[1762134621035,0.2148,3842.1,3842.0,4.05833068]
[1762134621736,13.73339997,3842.7,3842.0,4.05833068]
[1762134622039,0.2148,3842.1,3842.0,0.47314161]
[1762134622227,0.81572256,3842.1,3842.0,0.47314161]
[1762134622432,1.06156803,3842.1,3842.0,0.47314161]
[1762134623531,1.27193176,3842.1,3842.0,0.47314161]
[1762134623846,1.06156235,3842.1,3842.0,0.47314161]
[1762134624239,1.26724994,3842.1,3842.0,0.47314161]
[1762134624735,1.06156235,3842.1,3842.0,0.47314161]
[1762134630342,1.94546406,3842.1,3842.0,0.47314161]
[1762134633241,2.82936577,3842.1,3841.0,3.3493]
[1762134633440,2.82936577,3842.1,3841.0,3.5791]
[1762134633441,0.88390171,3841.1,3841.0,3.5791]
[1762134634139,0.88661453,3841.1,3841.0,3.5811281]
[1762134636437,0.22331282,3841.1,3841.0,3.3513281]
[1762134636633,0.22331282,3841.1,3841.0,3.5811281]
[1762134636839,0.00271282,3841.1,3841.0,3.5811281]
[1762134637544,0.22331282,3841.1,3841.0,3.3513281]
[1762134637744,0.00271282,3841.1,3841.0,3.5811281]
[1762134638250,0.22331282,3841.1,3841.0,3.5811281]
[1762134638441,0.22331282,3841.1,3841.0,3.2098281]
[1762134638741,0.22331282,3841.1,3841.0,0.0020281]
[1762134639245,4.03012788,3841.1,3841.0,0.0020281]
[1762134639436,4.27501411,3841.1,3840.1,3.2078]
[1762134639637,0.2206,3840.1,3840.0,0.1336]
[1762134640345,9.172,3840.6,3840.0,0.3634]
[1762134640541,9.172,3840.6,3840.0,0.36533899]
[1762134643246,9.172,3840.6,3840.0,3.57313899]
[1762134644545,0.2206,3840.1,3840.0,0.36533899]
[1762134644738,0.2206,3840.1,3840.0,0.00193899]
[1762134646048,0.81980658,3840.1,3840.0,0.00193899]
[1762134647645,0.2281,3839.2,3838.7,3.2078]
[1762134647947,0.2281,3839.1,3838.7,3.2078]
[1762134648244,0.2281,3839.1,3839.0,0.1304]
[1762134648646,0.2281,3839.1,3839.0,0.00210584]
[1762134653855,0.2281,3838.4,3838.0,0.1405]
[1762134654957,0.23088664,3838.4,3838.0,0.14373283]
[1762134655346,0.2281,3838.1,3838.0,0.14373283]
[1762134655653,0.2281,3838.1,3837.5,3.3382]
[1762134656051,0.2281,3838.1,3838.0,0.1304]
[1762134656250,12.3798,3838.3,3838.0,0.3484]
[1762134656452,13.49558809,3838.3,3838.0,0.3484]
[1762134656650,13.49558809,3838.3,3838.0,0.35128814]
[1762134656848,0.00278664,3838.4,3838.3,0.218]
[1762134657548,0.47174664,3838.4,3838.3,0.218]
[1762134658560,0.2281,3838.1,3838.0,0.00288814]
[1762134658767,1.11578809,3838.2,3838.0,0.35128814]
[1762134659060,0.46899,3838.1,3838.0,0.13328814]
[1762134659656,0.69709,3838.1,3838.0,0.13328814]
[1762134659953,0.2281,3838.1,3838.0,0.13328814]
[1762134660159,0.00278664,3838.4,3838.0,0.13328814]
[1762134660160,0.46899,3838.2,3838.1,0.218]
[1762134660853,0.2281,3838.1,3838.0,0.13328814]
[1762134661458,0.2281,3838.1,3838.0,0.00288814]
[1762134661846,3.4359,3838.1,3838.0,0.00288814]
[1762134662861,0.46905,3837.7,3837.6,0.218]
[1762134663153,3.2078,3838.1,3837.7,0.218]
[1762134663461,0.46902,3837.9,3837.7,0.218]
[1762134663760,3.2078,3838.1,3838.0,0.218]
[1762134663951,9.64098,3838.2,3838.1,0.218]
[1762134664150,10.46632309,3838.2,3838.1,0.218]
[1762134664351,0.2281,3838.1,3838.0,0.1304]
[1762134665550,0.2281,3837.8,3837.7,0.00302768]
[1762134665755,1.34388809,3837.8,3837.7,0.00302768]
[1762134667258,0.46903,3837.9,3837.7,0.22102768]
[1762134667465,0.2281,3837.8,3837.7,0.00302768]
[1762134667953,0.46903,3837.9,3837.7,0.22102768]
[1762134668361,0.59733952,3837.8,3837.7,0.22102768]
[1762134668861,0.82543952,3837.8,3837.7,0.00302768]
[1762134669164,0.82543952,3837.8,3837.7,0.22102768]
[1762134670058,1.0701226,3837.8,3837.7,0.22102768]
[1762134670259,1.0701226,3837.8,3837.7,0.00302768]
[1762134672254,1.0701226,3837.8,3837.7,0.22102768]
[1762134672657,1.0701226,3837.8,3837.7,0.00302768]
[1762134672961,0.8420226,3837.8,3837.7,0.22102768]
[1762134673159,0.59733952,3837.8,3837.7,0.22102768]
[1762134673355,0.46898,3838.3,3838.0,0.3484]
[1762134673560,1.07018734,3838.2,3838.1,0.218]
[1762134674158,1.31528175,3838.2,3838.1,0.218]
[1762134674458,1.31527175,3838.2,3838.1,0.218]
[1762134674763,1.07017734,3838.2,3838.1,0.218]
[1762134675660,1.31541831,3838.2,3838.1,0.218]
[1762134676160,0.84654313,3838.2,3838.1,0.218]
[1762134678166,0.00278664,3838.4,3838.3,0.2159]
[1762134678365,0.60545317,3838.4,3838.3,0.2159]
[1762134680159,0.00278664,3838.4,3838.3,0.2159]
[1762134683167,9.17,3839.4,3838.5,0.1288]
[1762134683468,4.92184767,3839.5,3838.5,0.1288]
[1762134683469,0.60334544,3839.3,3839.2,0.2159]
[1762134684266,0.00243653,3839.3,3839.2,0.2159]
[1762134687770,0.23393653,3839.3,3839.2,0.2159]
[1762134688068,0.00243653,3839.3,3839.2,0.2159]
[1762134689273,0.00243653,3839.3,3839.2,3.4237]
[1762134689876,3.2078,3840.0,3839.9,0.2259]
[1762134690765,3.21007087,3840.0,3839.9,0.2259]
[1762134690966,0.00227087,3840.0,3839.9,0.69467]
[1762134691559,0.00227087,3840.0,3839.9,0.2259]
[1762134691765,0.224,3840.6,3840.5,0.1359]
[1762134691972,0.82580616,3840.6,3840.5,0.1359]
[1762134692269,0.82580616,3840.6,3840.5,0.3618]
[1762134692270,0.46869,3840.6,3840.5,0.3618]
[1762134692665,0.4711056,3840.6,3840.5,0.36366647]
[1762134693268,0.0024156,3840.6,3840.5,0.36366647]
[1762134696172,0.46859,3841.5,3841.4,0.2259]
[1762134696565,0.46861,3841.3,3841.2,0.2259]
[1762134697169,0.47147144,3841.3,3841.2,0.2259]
[1762134697576,0.00286144,3841.3,3841.2,0.2259]
[1762134699674,3.67634,3841.9,3841.2,0.2259]
[1762134699881,5.221,3842.8,3842.0,0.3618]
[1762134699882,0.46851,3842.1,3842.0,0.3618]
[1762134700078,3.2078,3842.4,3842.0,0.3618]
[1762134700079,0.46849,3842.3,3842.2,0.2259]
[1762134700567,0.69249,3842.3,3842.2,0.2259]
[1762134700768,0.46851,3842.1,3842.0,0.3618]
[1762134702078,0.00328708,3842.3,3842.2,0.2259]
[1762134702278,0.22728708,3842.3,3842.2,0.2259]
[1762134704378,0.224,3842.0,3841.5,3.3437]
[1762134704571,0.46856,3841.7,3841.6,0.2259]
[1762134704767,0.46853,3842.0,3841.8,0.2259]
[1762134705583,0.224,3841.9,3841.8,0.2259]
[1762134705780,0.69267,3841.6,3841.5,3.3437]
[1762134706487,0.69267,3841.6,3841.5,3.2078]
[1762134706682,0.69273,3841.1,3841.0,3.3437]
[1762134706878,0.46863,3841.1,3841.0,3.5631]
[1762134709983,0.69273,3841.1,3841.0,3.3437]
[1762134713078,0.46863,3841.1,3841.0,3.5631]
[1762134713293,3.336,3842.0,3841.5,0.1354]
[1762134713488,3.336,3842.0,3841.5,0.3548]
[1762134713489,0.46857,3841.6,3841.5,0.3548]
[1762134713791,1.06955606,3841.6,3841.5,0.3548]
[1762134715287,1.31479339,3841.6,3841.5,0.3548]
[1762134717491,1.53889339,3841.6,3841.5,0.3548]
[1762134717687,0.46863,3841.1,3841.0,3.5631]
[1762134719298,1.07159562,3841.1,3841.0,0.3553]
[1762134719493,0.46869,3840.6,3840.5,3.56496647]
[1762134720493,0.1303,3841.5,3840.5,3.56496647]
[1762134720494,3.2078,3841.5,3841.0,0.1354]
[1762134720694,0.46863,3841.1,3841.0,0.3548]